[Event "*** Titled Tuesday Blitz"]
[Site "Chess.com"]
[Date "2019.05.07"]
[Round "7"]
[White "Hikaru"]
[Black "GHANDEEVAM2003"]
[Result "0-1"]
[WhiteElo "3192"]
[BlackElo "2901"]
[TimeControl "180+2"]
[EndTime "14:44:57 PDT"]
[Termination "GHANDEEVAM2003 won by resignation"]

1. Nf3 {[%clk 0:03:01.9]} 1... Nf6 {[%clk 0:03:00.3]} 2. b3 {[%clk 0:03:02.9]}
2... g6 {[%clk 0:03:00.8]} 3. Bb2 {[%clk 0:03:04.2]} 3... Bg7 {[%clk 0:03:02.1]}
4. d4 {[%clk 0:03:05.9]} 4... O-O {[%clk 0:03:03.2]} 5. e3 {[%clk 0:03:07.6]}
5... b6 {[%clk 0:03:02.6]} 6. Be2 {[%clk 0:03:08.9]} 6... Bb7 {[%clk 0:03:04]}
7. O-O {[%clk 0:03:10.8]} 7... c5 {[%clk 0:03:05.2]} 8. dxc5 {[%clk 0:03:08.5]}
8... bxc5 {[%clk 0:03:05.9]} 9. c4 {[%clk 0:03:09.9]} 9... d6 {[%clk 0:03:05.9]}
10. Nc3 {[%clk 0:03:10.8]} 10... Nbd7 {[%clk 0:03:05.8]} 11. Qc2 {[%clk
0:03:11.9]} 11... Ne4 {[%clk 0:03:03.5]} 12. Nd2 {[%clk 0:03:04.3]} 12... Nxc3
{[%clk 0:02:53.2]} 13. Bxc3 {[%clk 0:03:04.4]} 13... Bxc3 {[%clk 0:02:55.1]} 14.
Qxc3 {[%clk 0:03:06.3]} 14... Qc7 {[%clk 0:02:57]} 15. Rad1 {[%clk 0:03:06.4]}
15... Rfd8 {[%clk 0:02:56.9]} 16. Rfe1 {[%clk 0:03:07.5]} 16... a5 {[%clk
0:02:58]} 17. a4 {[%clk 0:03:08.3]} 17... Rab8 {[%clk 0:02:56.9]} 18. Nb1 {[%clk
0:03:09.4]} 18... Bc6 {[%clk 0:02:45.7]} 19. Bf1 {[%clk 0:02:58.9]} 19... Qb7
{[%clk 0:02:29.4]} 20. Nd2 {[%clk 0:02:59.1]} 20... Qb4 {[%clk 0:02:28]} 21. Qc2
{[%clk 0:02:56.4]} 21... Rb7 {[%clk 0:02:25.9]} 22. h3 {[%clk 0:02:53.7]} 22...
Rdb8 {[%clk 0:02:26.9]} 23. e4 {[%clk 0:02:54]} 23... Nf8 {[%clk 0:02:20]} 24.
Re3 {[%clk 0:02:13.8]} 24... Ne6 {[%clk 0:02:14.3]} 25. Qa2 {[%clk 0:02:07.5]}
25... Nd4 {[%clk 0:02:11.6]} 26. e5 {[%clk 0:02:07]} 26... d5 {[%clk 0:01:43.8]}
27. Rc1 {[%clk 0:01:57.2]} 27... Nf5 {[%clk 0:01:23]} 28. Rd3 {[%clk 0:01:39.9]}
28... d4 {[%clk 0:01:21.6]} 29. e6 {[%clk 0:01:38.2]} 29... f6 {[%clk
0:01:15.7]} 30. Re1 {[%clk 0:01:37.7]} 30... Kg7 {[%clk 0:01:10.1]} 31. g3
{[%clk 0:01:38.7]} 31... Nd6 {[%clk 0:01:07.8]} 32. Bg2 {[%clk 0:01:34.6]} 32...
Bxg2 {[%clk 0:01:08]} 33. Kxg2 {[%clk 0:01:36.5]} 33... Qb6 {[%clk 0:01:09.9]}
34. Qc2 {[%clk 0:01:37.2]} 34... Qc6+ {[%clk 0:01:10.4]} 35. Kg1 {[%clk
0:01:37.7]} 35... Rb6 {[%clk 0:01:07.3]} 36. Nf3 {[%clk 0:01:28.5]} 36... Ne4
{[%clk 0:00:50.1]} 37. Rxd4 {[%clk 0:01:07.8]} 37... Nxg3 {[%clk 0:00:36]} 38.
Rd3 {[%clk 0:00:52]} 38... Nf5 {[%clk 0:00:32.8]} 39. Qd1 {[%clk 0:00:33.2]}
39... Qb7 {[%clk 0:00:24.3]} 40. Nd2 {[%clk 0:00:33.6]} 40... Nd4 {[%clk
0:00:23.3]} 41. Qg4 {[%clk 0:00:28.5]} 41... Rd8 {[%clk 0:00:20.8]} 42. Ree3
{[%clk 0:00:25.8]} 42... Rbd6 {[%clk 0:00:20.5]} 43. Ne4 {[%clk 0:00:26.1]}
43... Rc6 {[%clk 0:00:17]} 44. Nxc5 {[%clk 0:00:24.8]} 44... Rxc5 {[%clk
0:00:18.9]} 45. Rxd4 {[%clk 0:00:26.4]} 45... Rxd4 {[%clk 0:00:17.5]} 46. Qxd4
{[%clk 0:00:28.3]} 46... Rg5+ {[%clk 0:00:19.4]} 47. Kf1 {[%clk 0:00:29.2]}
47... Qh1+ {[%clk 0:00:19.4]} 48. Ke2 {[%clk 0:00:30.7]} 48... Rg1 {[%clk
0:00:20.8]} 49. Qc3 {[%clk 0:00:19.8]} 49... Rc1 {[%clk 0:00:18]} 50. Qd2 {[%clk
0:00:21.2]} 50... Ra1 {[%clk 0:00:14.3]} 51. c5 {[%clk 0:00:19.4]} 51... Qb1
{[%clk 0:00:15.5]} 52. c6 {[%clk 0:00:18.5]} 52... Ra2 {[%clk 0:00:15.7]} 53.
Rc3 {[%clk 0:00:19.7]} 53... Qe4+ {[%clk 0:00:15.1]} 54. Kd1 {[%clk 0:00:21]}
54... Rxd2+ {[%clk 0:00:12.6]} 55. Kxd2 {[%clk 0:00:22.9]} 55... Qxe6 {[%clk
0:00:14]} 56. c7 {[%clk 0:00:24.5]} 56... Qc8 {[%clk 0:00:15.4]} 57. b4 {[%clk
0:00:26.1]} 57... axb4 {[%clk 0:00:17]} 58. Rc4 {[%clk 0:00:27.5]} 58... b3
{[%clk 0:00:15.8]} 59. Kc1 {[%clk 0:00:26.7]} 59... Kf7 {[%clk 0:00:17.2]} 60.
a5 {[%clk 0:00:26.1]} 60... Ke6 {[%clk 0:00:12.3]} 61. a6 {[%clk 0:00:27.5]}
61... b2+ {[%clk 0:00:13.8]} 62. Kxb2 {[%clk 0:00:25.3]} 62... Kd7 {[%clk
0:00:10.1]} 63. a7 {[%clk 0:00:25.7]} 63... Qb7+ {[%clk 0:00:10.3]} 64. Kc3
{[%clk 0:00:26.7]} 64... Kc8 {[%clk 0:00:11.8]} 65. Ra4 {[%clk 0:00:28.3]} 65...
Qa8 {[%clk 0:00:11.4]} 66. Kd2 {[%clk 0:00:28.9]} 66... Kxc7 {[%clk 0:00:12.4]}
67. h4 {[%clk 0:00:29.9]} 67... Kb6 {[%clk 0:00:12.9]} 68. Ke3 {[%clk
0:00:30.2]} 68... Kb5 {[%clk 0:00:13.4]} 69. Ra1 {[%clk 0:00:31.1]} 69... e5
{[%clk 0:00:14.7]} 70. Rb1+ {[%clk 0:00:32.2]} 70... Kc4 {[%clk 0:00:15.5]} 71.
Ra1 {[%clk 0:00:34.1]} 71... f5 {[%clk 0:00:16.2]} 72. f3 {[%clk 0:00:34.1]}
72... Kc3 {[%clk 0:00:16.7]} 73. Ra5 {[%clk 0:00:34.6]} 73... f4+ {[%clk
0:00:16.1]} 74. Ke2 {[%clk 0:00:34.6]} 74... e4 {[%clk 0:00:16.6]} 75. Ra4
{[%clk 0:00:34.1]} 75... exf3+ {[%clk 0:00:13.5]} 76. Kf2 {[%clk 0:00:35.6]}
76... Kb3 {[%clk 0:00:14.3]} 77. Ra6 {[%clk 0:00:35.7]} 77... Kc4 {[%clk
0:00:14.1]} 78. Ra1 {[%clk 0:00:36]} 78... Kb5 {[%clk 0:00:14.6]} 79. Rb1+
{[%clk 0:00:37.1]} 79... Kc5 {[%clk 0:00:15.7]} 80. Rc1+ {[%clk 0:00:38.1]}
80... Kb6 {[%clk 0:00:16.2]} 81. Rb1+ {[%clk 0:00:39.5]} 81... Kc7 {[%clk
0:00:17.2]} 82. Rc1+ {[%clk 0:00:40.7]} 82... Kd7 {[%clk 0:00:18.7]} 83. Ra1
{[%clk 0:00:41.8]} 83... Ke6 {[%clk 0:00:18.3]} 84. Ra5 {[%clk 0:00:42.1]} 84...
h6 {[%clk 0:00:19.3]} 85. Ra6+ {[%clk 0:00:39.9]} 85... Kf5 {[%clk 0:00:20.1]}
86. Kf1 {[%clk 0:00:40.2]} 86... g5 {[%clk 0:00:19.8]} 87. hxg5 {[%clk
0:00:40.2]} 87... hxg5 {[%clk 0:00:21.7]} 88. Ra5+ {[%clk 0:00:31]} 88... Kg4
{[%clk 0:00:22.7]} 89. Kf2 {[%clk 0:00:32.9]} 89... Qe4 {[%clk 0:00:21.9]} 90.
Ra2 {[%clk 0:00:32]} 90... Qd4+ {[%clk 0:00:22.7]} 91. Ke1 {[%clk 0:00:33.3]}
91... Qg1+ {[%clk 0:00:23]} 92. Kd2 {[%clk 0:00:34.2]} 0-1

[Event "*** Titled Tuesday Blitz"]
[Site "Chess.com"]
[Date "2019.05.07"]
[Round "8"]
[White "Veiso"]
[Black "harvsp123"]
[Result "0-1"]
[WhiteElo "2375"]
[BlackElo "2482"]
[TimeControl "180+2"]
[EndTime "14:49:27 PDT"]
[Termination "harvsp123 won by resignation"]

1. d4 {[%clk 0:02:58.8]} 1... Nf6 {[%clk 0:03:00.7]} 2. c4 {[%clk 0:02:59.3]}
2... g6 {[%clk 0:02:59.4]} 3. Nc3 {[%clk 0:02:59.3]} 3... d5 {[%clk 0:03:00]} 4.
Nf3 {[%clk 0:02:59.9]} 4... Bg7 {[%clk 0:03:00.8]} 5. Bg5 {[%clk 0:03:00.9]}
5... Ne4 {[%clk 0:03:01.6]} 6. Bh4 {[%clk 0:03:02.2]} 6... Nxc3 {[%clk
0:03:02.3]} 7. bxc3 {[%clk 0:03:04.1]} 7... dxc4 {[%clk 0:03:03.8]} 8. Qa4+
{[%clk 0:03:05.3]} 8... c6 {[%clk 0:03:05.1]} 9. Qxc4 {[%clk 0:03:07.2]} 9...
Na6 {[%clk 0:03:06]} 10. e3 {[%clk 0:03:04.8]} 10... Qa5 {[%clk 0:03:07.3]} 11.
Be2 {[%clk 0:02:59.6]} 11... Be6 {[%clk 0:03:07.2]} 12. Qd3 {[%clk 0:03:00.6]}
12... Nc5 {[%clk 0:03:08.4]} 13. Qd2 {[%clk 0:02:34.5]} 13... Ne4 {[%clk
0:03:06.5]} 14. Qc2 {[%clk 0:02:35.6]} 14... Qxc3+ {[%clk 0:03:00.2]} 15. Qxc3
{[%clk 0:02:35.7]} 15... Nxc3 {[%clk 0:03:02.1]} 16. Bd3 {[%clk 0:02:34]} 16...
Nxa2 {[%clk 0:02:59.9]} 17. Ng5 {[%clk 0:02:29.2]} 17... Nb4 {[%clk 0:03:00.5]}
18. Bb1 {[%clk 0:02:27.6]} 18... Bc4 {[%clk 0:02:59.3]} 19. Kd2 {[%clk
0:02:27.5]} 19... h6 {[%clk 0:02:52.9]} 20. Nf3 {[%clk 0:02:23.5]} 20... c5
{[%clk 0:02:42.7]} 21. Rc1 {[%clk 0:02:20.7]} 21... b5 {[%clk 0:02:40.9]} 22.
Be4 {[%clk 0:02:19.6]} 22... Rd8 {[%clk 0:02:37.5]} 23. Rxa7 {[%clk 0:02:09.3]}
23... g5 {[%clk 0:02:36.8]} 24. Bg3 {[%clk 0:02:09.6]} 24... cxd4 {[%clk
0:02:32.8]} 25. exd4 {[%clk 0:02:11.5]} 25... O-O {[%clk 0:02:10.4]} 26. Rxe7
{[%clk 0:02:05.3]} 26... f5 {[%clk 0:02:09.7]} 27. Bb1 {[%clk 0:01:58.6]} 27...
f4 {[%clk 0:02:09.5]} 0-1

[Event "*** Titled Tuesday Blitz"]
[Site "Chess.com"]
[Date "2019.05.07"]
[Round "8"]
[White "riconaipe"]
[Black "ENEASZ"]
[Result "1-0"]
[WhiteElo "2442"]
[BlackElo "2499"]
[TimeControl "180+2"]
[EndTime "14:49:33 PDT"]
[Termination "riconaipe won by resignation"]

1. Nf3 {[%clk 0:03:01.9]} 1... Nf6 {[%clk 0:03:00.8]} 2. g3 {[%clk 0:03:02.7]}
2... g6 {[%clk 0:03:02.4]} 3. Bg2 {[%clk 0:03:04.4]} 3... Bg7 {[%clk 0:03:04.3]}
4. O-O {[%clk 0:03:05.8]} 4... O-O {[%clk 0:03:06.2]} 5. d4 {[%clk 0:03:05.5]}
5... d6 {[%clk 0:03:08.1]} 6. c4 {[%clk 0:03:06.4]} 6... Nc6 {[%clk 0:03:09.5]}
7. Nc3 {[%clk 0:03:07.7]} 7... a6 {[%clk 0:03:11]} 8. e4 {[%clk 0:03:06.8]} 8...
e5 {[%clk 0:03:09.4]} 9. dxe5 {[%clk 0:03:04.7]} 9... Nxe5 {[%clk 0:03:09.7]}
10. Nxe5 {[%clk 0:03:05]} 10... dxe5 {[%clk 0:03:11.6]} 11. Qxd8 {[%clk
0:03:06]} 11... Rxd8 {[%clk 0:03:13.5]} 12. Bg5 {[%clk 0:03:07]} 12... Re8
{[%clk 0:03:04.8]} 13. Rad1 {[%clk 0:03:06.4]} 13... h6 {[%clk 0:03:01]} 14.
Bxf6 {[%clk 0:03:01.5]} 14... Bxf6 {[%clk 0:03:02.9]} 15. Nd5 {[%clk 0:03:02.6]}
15... Bd8 {[%clk 0:03:03.8]} 16. c5 {[%clk 0:03:01.5]} 16... Be6 {[%clk
0:03:03.6]} 17. a3 {[%clk 0:03:00.9]} 17... a5 {[%clk 0:03:00]} 18. f4 {[%clk
0:03:01.4]} 18... exf4 {[%clk 0:02:45.3]} 19. gxf4 {[%clk 0:03:02]} 19... c6
{[%clk 0:02:46.4]} 20. f5 {[%clk 0:02:52.3]} 20... Bc8 {[%clk 0:02:29.2]} 21.
fxg6 {[%clk 0:02:42]} 21... fxg6 {[%clk 0:02:28.7]} 22. Nf6+ {[%clk 0:02:40.1]}
22... Bxf6 {[%clk 0:02:29.5]} 23. Rxf6 {[%clk 0:02:41.5]} 23... Re5 {[%clk
0:01:55.7]} 24. Rd8+ {[%clk 0:02:28.4]} 24... Kg7 {[%clk 0:01:56.2]} 25. Rff8
{[%clk 0:02:28.9]} 25... Rxc5 {[%clk 0:01:56.9]} 26. Rxc8 {[%clk 0:02:29.6]}
26... Rxc8 {[%clk 0:01:58.8]} 27. Rxc8 {[%clk 0:02:30]} 27... Rc1+ {[%clk
0:02:00.7]} 28. Kf2 {[%clk 0:02:29.8]} 28... Rc2+ {[%clk 0:02:00.9]} 29. Kg3
{[%clk 0:02:30.8]} 29... Rxb2 {[%clk 0:02:02.8]} 30. e5 {[%clk 0:02:30.1]} 30...
Rb3+ {[%clk 0:02:03]} 31. Kf4 {[%clk 0:02:30.6]} 31... Rxa3 {[%clk 0:02:04.9]}
32. Rc7+ {[%clk 0:02:31.1]} 32... Kf8 {[%clk 0:02:06.5]} 33. Rxb7 {[%clk
0:02:31.5]} 33... Ra2 {[%clk 0:02:07.8]} 34. Bxc6 {[%clk 0:02:31.7]} 34... Rxh2
{[%clk 0:02:08.6]} 35. e6 {[%clk 0:02:30.8]} 35... Re2 {[%clk 0:02:09.4]} 36.
Be4 {[%clk 0:02:30.8]} 36... a4 {[%clk 0:02:09.2]} 37. Ke5 {[%clk 0:02:29.1]}
37... a3 {[%clk 0:02:09.5]} 38. Kf6 {[%clk 0:02:29.5]} 1-0

[Event "*** Titled Tuesday Blitz"]
[Site "Chess.com"]
[Date "2019.05.07"]
[Round "8"]
[White "NemtsevIgor"]
[Black "vladimirdamjanovic"]
[Result "0-1"]
[WhiteElo "2257"]
[BlackElo "2545"]
[TimeControl "180+2"]
[EndTime "14:51:01 PDT"]
[Termination "vladimirdamjanovic won by checkmate"]

1. c3 {[%clk 0:03:01.9]} 1... Nf6 {[%clk 0:02:59.5]} 2. Qa4 {[%clk 0:03:01.9]}
2... e5 {[%clk 0:02:58]} 3. g4 {[%clk 0:02:57.8]} 3... b5 {[%clk 0:02:51.3]} 4.
Qxb5 {[%clk 0:02:54.9]} 4... Nc6 {[%clk 0:02:41.3]} 5. g5 {[%clk 0:02:49.4]}
5... Ne4 {[%clk 0:02:41.6]} 6. h4 {[%clk 0:02:38]} 6... Bc5 {[%clk 0:02:16.6]}
7. d4 {[%clk 0:02:19.1]} 7... exd4 {[%clk 0:01:57.4]} 8. Bg2 {[%clk 0:02:20.1]}
8... Qe7 {[%clk 0:01:56.3]} 9. Bxe4 {[%clk 0:01:56.3]} 9... Qxe4 {[%clk
0:01:56.3]} 10. Nf3 {[%clk 0:01:52]} 10... Qe7 {[%clk 0:01:33.6]} 11. Bf4 {[%clk
0:01:16.4]} 11... Rb8 {[%clk 0:01:27.4]} 12. Qd3 {[%clk 0:01:15.3]} 12... Rxb2
{[%clk 0:01:22.7]} 13. cxd4 {[%clk 0:01:12.7]} 13... Nb4 {[%clk 0:01:09.4]} 14.
Qc4 {[%clk 0:00:58]} 14... Ba6 {[%clk 0:01:02.9]} 15. Qxc5 {[%clk 0:00:21.5]}
15... Qxe2# {[%clk 0:01:02.3]} 0-1

[Event "*** Titled Tuesday Blitz"]
[Site "Chess.com"]
[Date "2019.05.07"]
[Round "8"]
[White "BvsN"]
[Black "AndrewMcStone"]
[Result "1-0"]
[WhiteElo "2299"]
[BlackElo "2144"]
[TimeControl "180+2"]
[EndTime "14:51:23 PDT"]
[Termination "BvsN won by resignation"]

1. d4 {[%clk 0:03:01.9]} 1... Nf6 {[%clk 0:03:00.4]} 2. c4 {[%clk 0:02:55.5]}
2... Nc6 {[%clk 0:03:01.4]} 3. Nf3 {[%clk 0:02:47.3]} 3... e6 {[%clk 0:03:02.1]}
4. a3 {[%clk 0:02:48.5]} 4... g6 {[%clk 0:03:02.3]} 5. Nc3 {[%clk 0:02:49]} 5...
Bg7 {[%clk 0:03:03.7]} 6. e4 {[%clk 0:02:47.2]} 6... d6 {[%clk 0:03:05.1]} 7.
Be2 {[%clk 0:02:48]} 7... O-O {[%clk 0:03:06.5]} 8. O-O {[%clk 0:02:48.7]} 8...
Re8 {[%clk 0:03:08]} 9. h3 {[%clk 0:02:49]} 9... e5 {[%clk 0:03:07.2]} 10. dxe5
{[%clk 0:02:42.7]} 10... dxe5 {[%clk 0:03:06.3]} 11. Qxd8 {[%clk 0:02:43.5]}
11... Rxd8 {[%clk 0:03:05.1]} 12. Bg5 {[%clk 0:02:30.6]} 12... Nd4 {[%clk
0:02:34.6]} 13. Nxd4 {[%clk 0:02:19]} 13... Rxd4 {[%clk 0:02:27.5]} 14. Nd5
{[%clk 0:01:11.6]} 14... Nxe4 {[%clk 0:01:14]} 15. Be3 {[%clk 0:01:08.9]} 15...
Nd2 {[%clk 0:01:12.6]} 16. Bxd4 {[%clk 0:00:54.9]} 16... Nxf1 {[%clk 0:01:06.7]}
17. Bc3 {[%clk 0:00:49.7]} 17... c6 {[%clk 0:00:52.9]} 18. Ne7+ {[%clk
0:00:50.3]} 18... Kf8 {[%clk 0:00:54.1]} 19. Nxc8 {[%clk 0:00:51.5]} 19... Rxc8
{[%clk 0:00:55.9]} 20. Kxf1 {[%clk 0:00:51.9]} 20... f5 {[%clk 0:00:55.8]} 21.
Rd1 {[%clk 0:00:52.1]} 21... Ke7 {[%clk 0:00:56.8]} 22. f4 {[%clk 0:00:52.1]}
22... b6 {[%clk 0:00:54.9]} 23. Bxe5 {[%clk 0:00:50]} 23... Bxe5 {[%clk
0:00:55.3]} 24. fxe5 {[%clk 0:00:51.3]} 24... Ke6 {[%clk 0:00:57.2]} 25. Bf3
{[%clk 0:00:51]} 25... Kxe5 {[%clk 0:00:57.9]} 26. Rd7 {[%clk 0:00:52.1]} 1-0

[Event "*** Titled Tuesday Blitz"]
[Site "Chess.com"]
[Date "2019.05.07"]
[Round "8"]
[White "LastHeroJr"]
[Black "Vincent_Vega95"]
[Result "0-1"]
[WhiteElo "2499"]
[BlackElo "2671"]
[TimeControl "180+2"]
[EndTime "14:51:41 PDT"]
[Termination "Vincent_Vega95 won by checkmate"]

1. e4 {[%clk 0:03:01.9]} 1... c5 {[%clk 0:02:44.5]} 2. Nf3 {[%clk 0:03:01.1]}
2... d6 {[%clk 0:02:45.3]} 3. d4 {[%clk 0:03:02.1]} 3... cxd4 {[%clk 0:02:47.2]}
4. Nxd4 {[%clk 0:03:04]} 4... Nf6 {[%clk 0:02:48.1]} 5. Nc3 {[%clk 0:03:05.7]}
5... a6 {[%clk 0:02:49.7]} 6. Bg5 {[%clk 0:03:07.2]} 6... e6 {[%clk 0:02:50.8]}
7. f4 {[%clk 0:03:08.8]} 7... Qc7 {[%clk 0:02:51.9]} 8. Bxf6 {[%clk 0:03:05.9]}
8... gxf6 {[%clk 0:02:52.7]} 9. Qd2 {[%clk 0:03:04.8]} 9... Nc6 {[%clk
0:02:53.5]} 10. O-O-O {[%clk 0:03:04.3]} 10... Bd7 {[%clk 0:02:54.3]} 11. Be2
{[%clk 0:03:02.5]} 11... h5 {[%clk 0:02:55.1]} 12. Kb1 {[%clk 0:03:00]} 12...
O-O-O {[%clk 0:02:55.9]} 13. Nb3 {[%clk 0:02:48.9]} 13... Kb8 {[%clk 0:02:47.4]}
14. Rhf1 {[%clk 0:02:50]} 14... h4 {[%clk 0:02:40.9]} 15. Rf3 {[%clk 0:02:38.5]}
15... Bc8 {[%clk 0:02:41.2]} 16. Rh3 {[%clk 0:02:35.3]} 16... Bg7 {[%clk
0:02:10.1]} 17. Qe1 {[%clk 0:02:32.6]} 17... f5 {[%clk 0:02:09.3]} 18. exf5
{[%clk 0:02:30.2]} 18... d5 {[%clk 0:02:10.6]} 19. Bd3 {[%clk 0:02:06.5]} 19...
Nb4 {[%clk 0:02:06.7]} 20. Ne2 {[%clk 0:01:52.2]} 20... Nxd3 {[%clk 0:01:49.6]}
21. cxd3 {[%clk 0:01:45.3]} 21... Qe7 {[%clk 0:01:48.1]} 22. fxe6 {[%clk
0:01:25.4]} 22... Bxe6 {[%clk 0:01:47.8]} 23. Re3 {[%clk 0:01:25.7]} 23... Qf6
{[%clk 0:01:48.8]} 24. d4 {[%clk 0:01:21.1]} 24... Bf5+ {[%clk 0:01:50]} 25. Ka1
{[%clk 0:01:22.4]} 25... Rhe8 {[%clk 0:01:50.3]} 26. Nc3 {[%clk 0:01:17]} 26...
Rxe3 {[%clk 0:01:46.2]} 27. Qxe3 {[%clk 0:01:18.9]} 27... Qd6 {[%clk 0:01:47.4]}
28. Re1 {[%clk 0:01:07.3]} 28... Bf6 {[%clk 0:01:48.5]} 29. Nc5 {[%clk
0:01:04.9]} 29... Ka7 {[%clk 0:01:47.1]} 30. g3 {[%clk 0:00:51.7]} 30... hxg3
{[%clk 0:01:35.1]} 31. hxg3 {[%clk 0:00:53.6]} 31... Rh8 {[%clk 0:01:36.6]} 32.
Nd3 {[%clk 0:00:50.7]} 32... Bxd3 {[%clk 0:01:29.3]} 33. Qxd3 {[%clk 0:00:52.6]}
33... Qb4 {[%clk 0:01:29.6]} 34. Rd1 {[%clk 0:00:49]} 34... Rh2 {[%clk
0:01:27.6]} 35. a3 {[%clk 0:00:48.2]} 35... Qxb2# {[%clk 0:01:27.3]} 0-1

[Event "*** Titled Tuesday Blitz"]
[Site "Chess.com"]
[Date "2019.05.07"]
[Round "8"]
[White "Yurovskykh_Oleksandr"]
[Black "RzayevB"]
[Result "0-1"]
[WhiteElo "2536"]
[BlackElo "2707"]
[TimeControl "180+2"]
[EndTime "14:52:16 PDT"]
[Termination "RzayevB won by checkmate"]

1. d4 {[%clk 0:03:01.9]} 1... d5 {[%clk 0:02:58]} 2. Bf4 {[%clk 0:03:02.1]} 2...
Nf6 {[%clk 0:02:57.8]} 3. e3 {[%clk 0:03:03.4]} 3... g6 {[%clk 0:02:58.8]} 4.
Nf3 {[%clk 0:03:03.4]} 4... Bg7 {[%clk 0:03:00.7]} 5. Be2 {[%clk 0:03:03.8]}
5... O-O {[%clk 0:03:02.6]} 6. O-O {[%clk 0:03:05.2]} 6... c5 {[%clk 0:03:04.5]}
7. c3 {[%clk 0:03:06.1]} 7... Nc6 {[%clk 0:03:06.1]} 8. Nbd2 {[%clk 0:03:07.5]}
8... Nd7 {[%clk 0:03:06.5]} 9. Qb3 {[%clk 0:03:06.3]} 9... e5 {[%clk 0:03:04.5]}
10. dxe5 {[%clk 0:03:05.5]} 10... Ndxe5 {[%clk 0:03:06.4]} 11. Nxe5 {[%clk
0:03:07]} 11... Nxe5 {[%clk 0:03:08.3]} 12. Nf3 {[%clk 0:03:06]} 12... c4 {[%clk
0:03:03.9]} 13. Qd1 {[%clk 0:03:01.2]} 13... Nc6 {[%clk 0:03:00.3]} 14. Nd4
{[%clk 0:02:52.6]} 14... Nxd4 {[%clk 0:02:45.5]} 15. exd4 {[%clk 0:02:53.1]}
15... b5 {[%clk 0:02:47]} 16. a3 {[%clk 0:02:44.7]} 16... a5 {[%clk 0:02:45.7]}
17. Bf3 {[%clk 0:02:44.7]} 17... Be6 {[%clk 0:02:45.7]} 18. Be5 {[%clk
0:02:43.8]} 18... Bh6 {[%clk 0:02:43.2]} 19. b3 {[%clk 0:02:33.5]} 19... Rc8
{[%clk 0:02:22.4]} 20. bxc4 {[%clk 0:02:11.6]} 20... Rxc4 {[%clk 0:02:24.3]} 21.
Qb3 {[%clk 0:02:12.2]} 21... Qd7 {[%clk 0:02:10.2]} 22. Be2 {[%clk 0:02:10.3]}
22... Re8 {[%clk 0:01:35.1]} 23. Bxc4 {[%clk 0:02:07.5]} 23... dxc4 {[%clk
0:01:36.1]} 24. Qb2 {[%clk 0:02:08.8]} 24... Bd5 {[%clk 0:01:37]} 25. a4 {[%clk
0:02:03.5]} 25... f6 {[%clk 0:01:19.5]} 26. Bg3 {[%clk 0:01:50.4]} 26... bxa4
{[%clk 0:01:15.2]} 27. Qb6 {[%clk 0:01:49.3]} 27... Bd2 {[%clk 0:01:09.2]} 28.
Qxf6 {[%clk 0:01:36.5]} 28... Rf8 {[%clk 0:00:54.3]} 29. Qd6 {[%clk 0:01:30.5]}
29... Qb7 {[%clk 0:00:42.8]} 30. Rxa4 {[%clk 0:01:14]} 30... Bxg2 {[%clk
0:00:35.8]} 31. Rxa5 {[%clk 0:01:02.7]} 31... Bxf1 {[%clk 0:00:31.4]} 32. Kxf1
{[%clk 0:01:03.7]} 32... Qh1+ {[%clk 0:00:31.5]} 33. Ke2 {[%clk 0:01:04.8]}
33... Qe1# {[%clk 0:00:33.4]} 0-1

[Event "*** Titled Tuesday Blitz"]
[Site "Chess.com"]
[Date "2019.05.07"]
[Round "8"]
[White "annamaja"]
[Black "dopolian"]
[Result "0-1"]
[WhiteElo "2146"]
[BlackElo "2262"]
[TimeControl "180+2"]
[EndTime "14:52:22 PDT"]
[Termination "dopolian won by checkmate"]

1. e4 {[%clk 0:03:01.9]} 1... e5 {[%clk 0:02:58.6]} 2. Nf3 {[%clk 0:03:02.9]}
2... Nc6 {[%clk 0:02:59.8]} 3. Bc4 {[%clk 0:03:04.3]} 3... Bc5 {[%clk
0:03:01.3]} 4. O-O {[%clk 0:03:04.6]} 4... Nf6 {[%clk 0:03:02.8]} 5. d3 {[%clk
0:03:05.8]} 5... O-O {[%clk 0:03:03.6]} 6. c3 {[%clk 0:03:06.8]} 6... d5 {[%clk
0:03:04.7]} 7. exd5 {[%clk 0:03:07.5]} 7... Nxd5 {[%clk 0:03:06.6]} 8. h3 {[%clk
0:03:06.6]} 8... Bb6 {[%clk 0:03:04.8]} 9. Re1 {[%clk 0:03:05.4]} 9... Be6
{[%clk 0:02:57]} 10. Nxe5 {[%clk 0:02:59]} 10... Nxe5 {[%clk 0:02:58.9]} 11.
Rxe5 {[%clk 0:02:59.6]} 11... Bxf2+ {[%clk 0:02:59.2]} 12. Kh1 {[%clk
0:02:48.4]} 12... Qf6 {[%clk 0:02:49.6]} 13. Qe2 {[%clk 0:02:37.6]} 13... Bg3
{[%clk 0:02:42.8]} 14. Rxd5 {[%clk 0:02:23.2]} 14... Bxd5 {[%clk 0:02:36.9]} 15.
Bxd5 {[%clk 0:02:23.7]} 15... Rae8 {[%clk 0:02:28.2]} 16. Be4 {[%clk 0:02:22.5]}
16... Qd6 {[%clk 0:02:13.3]} 17. Be3 {[%clk 0:01:42.8]} 17... f5 {[%clk
0:02:10]} 18. Nd2 {[%clk 0:01:28.2]} 18... fxe4 {[%clk 0:02:08.2]} 19. Nxe4
{[%clk 0:01:29.6]} 19... Qg6 {[%clk 0:02:01.8]} 20. Bc5 {[%clk 0:01:09.4]} 20...
Rf5 {[%clk 0:01:49.5]} 21. Qe3 {[%clk 0:00:53.6]} 21... Bd6 {[%clk 0:01:27.6]}
22. Bxd6 {[%clk 0:00:46.2]} 22... cxd6 {[%clk 0:01:29.5]} 23. Re1 {[%clk
0:00:39.1]} 23... Ref8 {[%clk 0:01:23.1]} 24. Qxa7 {[%clk 0:00:35]} 24... d5
{[%clk 0:01:19.5]} 25. Nc5 {[%clk 0:00:09.5]} 25... Rf1+ {[%clk 0:01:16]} 26.
Rxf1 {[%clk 0:00:08]} 26... Rxf1+ {[%clk 0:01:17.9]} 27. Kh2 {[%clk 0:00:08.9]}
27... Qd6+ {[%clk 0:01:18.3]} 28. g3 {[%clk 0:00:08.4]} 28... Rf2+ {[%clk
0:01:18]} 29. Kh1 {[%clk 0:00:09.5]} 29... Qxg3 {[%clk 0:01:09.4]} 30. Qa8+
{[%clk 0:00:10.3]} 30... Rf8 {[%clk 0:01:09.7]} 31. Qxb7 {[%clk 0:00:07.8]}
31... Rf1# {[%clk 0:01:10.3]} 0-1